bitfinex/quotes_BTCUSD_20241223
["timestamp","ask_amount","ask_price","bid_price","bid_amount"]
[1734924351609,0.20924,95584.0,95576.0,0.000171]
[1734924351808,0.00546074,95578.0,95576.0,0.000171]
[1734924353023,0.00024641,95596.0,95576.0,0.1014794]
[1734924353283,0.00024641,95596.0,95593.0,0.15]
[1734924353432,0.00024641,95596.0,95595.0,0.15]
[1734924353836,0.00024641,95596.0,95595.0,0.2513084]
[1734924354771,0.00424641,95596.0,95595.0,0.27215308]
[1734924356798,0.00424641,95596.0,95595.0,0.17084468]
[1734924356998,0.00424641,95596.0,95595.0,0.02084468]
[1734924358033,0.00424641,95596.0,95595.0,0.37215308]
[1734924358945,0.00424641,95596.0,95595.0,0.51809708]
[1734924359152,0.00424641,95596.0,95595.0,0.37215308]
[1734924359387,0.00024641,95596.0,95595.0,0.37115308]
[1734924359759,0.00424641,95596.0,95595.0,0.37215308]
[1734924359975,0.0001712,95606.0,95605.0,0.359194]
[1734924361498,0.0001712,95606.0,95605.0,0.367194]
[1734924362695,0.0001712,95606.0,95605.0,0.38730312]
[1734924363272,0.0001712,95606.0,95605.0,0.02810912]
[1734924363416,0.0001712,95606.0,95605.0,0.008]
[1734924363618,0.2093622,95606.0,95605.0,0.008]
[1734924363824,0.0001712,95606.0,95605.0,0.008]
[1734924364041,0.2093622,95606.0,95605.0,0.008]
[1734924364499,0.2916622,95606.0,95605.0,0.008]
[1734924365917,0.5008552,95606.0,95600.0,0.01952415]
[1734924366061,0.209196,95604.0,95600.0,0.01952415]
[1734924366262,0.209196,95604.0,95588.0,0.02117802]
[1734924366465,0.5008552,95606.0,95590.0,0.15]
[1734924367090,0.5008552,95606.0,95588.0,0.02117802]
[1734924367290,0.5008552,95606.0,95600.0,0.004]
[1734924367499,0.5008552,95606.0,95588.0,0.02117802]
[1734924367830,0.2916622,95606.0,95589.0,0.209229]
[1734924368039,0.2916622,95606.0,95590.0,0.15]
[1734924368594,0.209194,95605.0,95589.0,0.209229]
[1734924368798,0.209207,95600.0,95588.0,0.02117802]
[1734924369000,0.209207,95600.0,95590.0,0.001]
[1734924369203,0.3105024,95605.0,95590.0,0.001]
[1734924369410,0.00130752,95604.0,95590.0,0.001]
[1734924369616,0.209198,95603.0,95590.0,0.001]
[1734924369818,0.209198,95603.0,95588.0,0.02117802]
[1734924370404,0.209207,95599.0,95588.0,0.02217802]
[1734924370669,0.1013084,95598.0,95586.0,0.00016091]
[1734924370889,0.209233,95587.0,95586.0,0.00016091]
[1734924371121,0.3105414,95587.0,95586.0,0.00016091]
[1734924371356,0.3907414,95587.0,95586.0,0.00016091]
[1734924372336,0.3907414,95587.0,95573.0,0.01948313]
[1734924372337,0.209255,95577.0,95552.0,0.020637]
[1734924372593,0.3105634,95577.0,95560.0,0.02014163]
[1734924374063,0.3115634,95577.0,95560.0,0.02014163]
[1734924374279,0.3105634,95577.0,95560.0,0.02014163]
[1734924374693,0.314916,95549.0,95548.0,0.02139244]
[1734924374905,0.023,95548.0,95498.0,0.19056288]
[1734924375121,0.023,95539.0,95512.0,0.02069977]
[1734924375345,0.209361,95529.0,95507.0,0.209408]
[1734924375576,0.102617,95528.0,95501.0,0.209421]
[1734924375879,0.102617,95528.0,95506.0,0.209408]
[1734924375880,0.10747377,95528.0,95506.0,0.209408]
[1734924376114,0.209364,95527.0,95509.0,0.15]
[1734924376332,0.3106724,95527.0,95509.0,0.15]
[1734924376518,0.00485684,95526.0,95511.0,0.15]
[1734924376725,0.009,95529.0,95513.0,0.15]
[1734924376927,0.209346,95536.0,95515.0,0.15]
[1734924376928,0.00485666,95528.0,95515.0,0.15]
[1734924377128,0.01385666,95528.0,95517.0,0.15]
[1734924377450,0.209346,95536.0,95517.0,0.15]
[1734924377660,0.209349,95534.0,95518.0,0.209384]
[1734924378007,0.3106544,95536.0,95518.0,0.209384]
[1734924378216,0.20932,95548.0,95517.0,0.15]
[1734924378410,0.20932,95548.0,95525.0,0.15]
[1734924378611,0.10261674,95547.0,95526.0,0.209366]
[1734924379060,0.10261674,95547.0,95525.0,0.15]
[1734924379232,0.209325,95545.0,95526.0,0.209367]
[1734924379441,0.18975669,95540.0,95526.0,0.209367]
[1734924379846,0.209329,95543.0,95526.0,0.209367]
[1734924380046,0.209346,95536.0,95526.0,0.001]
[1734924380297,0.00130845,95535.0,95526.0,0.001]
[1734924380509,0.18975669,95540.0,95519.0,0.02061176]
[1734924380510,0.209354,95532.0,95519.0,0.02061176]
[1734924380848,0.209354,95532.0,95519.0,0.17061176]
[1734924381238,0.20932,95548.0,95528.0,0.209361]
[1734924381424,0.209323,95546.0,95528.0,0.209361]
[1734924381651,0.1013084,95547.0,95528.0,0.209361]
[1734924381827,0.1013084,95547.0,95535.0,0.209345]
[1734924382575,0.18975669,95550.0,95537.0,0.209342]
[1734924382773,0.18975669,95560.0,95549.0,0.209316]
[1734924382997,0.0001607,95560.0,95549.0,0.209316]
[1734924383730,0.0001607,95560.0,95540.0,0.209336]
[1734924383731,0.18991739,95560.0,95540.0,0.209336]
[1734924383931,0.209294,95559.0,95542.0,0.209332]
[1734924384150,0.209294,95559.0,95541.0,0.15]
[1734924384151,0.19591739,95560.0,95549.0,0.001]
[1734924384514,0.18991739,95560.0,95543.0,0.15]
[1734924384714,0.0001607,95560.0,95543.0,0.359329]
[1734924384897,0.0001607,95560.0,95553.0,0.209306]
[1734924385098,0.0001607,95560.0,95545.0,0.15]
[1734924385519,0.0001607,95560.0,95552.0,0.209307]
[1734924385717,0.0001607,95560.0,95545.0,0.15]
[1734924385718,0.0001607,95560.0,95548.0,0.02104687]
[1734924385921,0.0061607,95560.0,95554.0,0.209304]
[1734924386355,0.0001607,95560.0,95554.0,0.209304]
[1734924386780,0.0001607,95560.0,95549.0,0.209316]
[1734924387010,0.0001607,95560.0,95555.0,0.209301]
[1734924387410,0.0001607,95560.0,95549.0,0.209316]
[1734924387642,0.0002462,95560.0,95554.0,0.002]
[1734924388507,0.0002462,95560.0,95549.0,0.085316]
[1734924388711,0.0002462,95560.0,95545.0,0.02047883]
[1734924389346,0.0002462,95560.0,95555.0,0.211302]
[1734924389496,0.0002462,95560.0,95555.0,0.209302]
[1734924389707,0.0002462,95560.0,95552.0,0.209308]
[1734924389907,0.0072462,95560.0,95552.0,0.209308]
[1734924390106,0.0002462,95560.0,95552.0,0.209308]
[1734924390406,0.0002462,95560.0,95555.0,0.005]
[1734924390827,0.0002462,95560.0,95553.0,0.15]
[1734924391406,0.0002462,95560.0,95551.0,0.15]
[1734924391618,0.0002462,95560.0,95541.0,0.15]
[1734924392046,0.1785084,95559.0,95541.0,0.15]
[1734924392309,0.209308,95553.0,95552.0,0.005]
[1734924392506,0.20933,95543.0,95540.0,0.01803261]
[1734924392901,0.1013084,95552.0,95545.0,0.001]
[1734924393120,0.0002462,95560.0,95546.0,0.209323]
[1734924393277,0.1015546,95560.0,95544.0,0.209325]
[1734924393460,0.1015546,95560.0,95552.0,0.002]
[1734924393816,0.0002462,95560.0,95550.0,0.12628038]
[1734924393982,0.0002462,95560.0,95550.0,0.33559338]
[1734924394181,0.002,95552.0,95551.0,0.15]
[1734924394915,0.002,95552.0,95551.0,0.359312]
[1734924395495,0.0002462,95560.0,95551.0,0.359312]
[1734924395496,0.0002462,95560.0,95559.0,0.209294]
[1734924396548,0.0002462,95560.0,95559.0,0.359294]
[1734924396718,0.0002462,95560.0,95559.0,0.4606024]
[1734924397099,0.0002462,95560.0,95559.0,0.4666024]
[1734924398873,0.0002462,95560.0,95559.0,0.4606024]
[1734924399172,0.0012462,95560.0,95559.0,0.4616024]
[1734924399387,0.0002462,95560.0,95559.0,0.4606024]
[1734924399586,0.00130774,95594.0,95582.0,0.209243]
[1734924399727,0.00016085,95594.0,95577.0,0.209254]
[1734924400511,0.00016085,95594.0,95581.0,0.02121655]
[1734924401239,0.00016085,95594.0,95590.0,0.209225]
[1734924401444,0.00016085,95594.0,95592.0,0.209222]
[1734924401871,0.00016085,95594.0,95593.0,0.15]
[1734924402444,0.00016085,95594.0,95593.0,0.2513084]
[1734924403528,0.00116085,95594.0,95593.0,0.2523084]
[1734924405086,0.00116085,95594.0,95593.0,0.26874378]
[1734924405917,1e-08,95594.0,95593.0,0.26874378]
[1734924406997,1e-08,95594.0,95593.0,0.34644378]
[1734924407245,0.0001712,95606.0,95605.0,0.359194]
[1734924407545,0.0001712,95606.0,95605.0,0.4605024]
[1734924408945,8.54e-05,95621.0,95606.0,0.15]
[1734924409174,8.54e-05,95621.0,95610.0,0.209183]
[1734924409378,8.54e-05,95621.0,95611.0,0.15]
[1734924410558,8.54e-05,95621.0,95606.0,0.001]
[1734924410756,8.54e-05,95621.0,95606.0,0.01769059]
[1734924410961,8.54e-05,95621.0,95606.0,0.001]
[1734924411530,0.209171,95616.0,95605.0,0.02069879]
[1734924412245,8.54e-05,95621.0,95593.0,0.000171]
[1734924412246,0.3912884,95611.0,95593.0,0.000171]
[1734924412407,0.00130758,95610.0,95594.0,0.01612935]
[1734924412609,0.209214,95596.0,95593.0,0.01688628]
[1734924412813,0.209214,95596.0,95593.0,0.000171]
[1734924413637,0.209224,95592.0,95570.0,0.09056288]
[1734924413892,0.209235,95587.0,95583.0,0.00016085]
[1734924414113,0.209208,95599.0,95583.0,0.02108998]
[1734924414288,0.209208,95599.0,95590.0,0.12628038]
[1734924414501,0.209239,95585.0,95583.0,0.00016085]
[1734924414695,0.20691645,95584.0,95583.0,0.00016085]
[1734924414897,0.2056084,95584.0,95583.0,0.00016085]
[1734924415096,0.20691643,95584.0,95583.0,0.00016085]
[1734924415914,0.2056084,95584.0,95583.0,0.00016085]
[1734924416295,0.2056084,95584.0,95583.0,0.00316085]
[1734924416661,0.1826084,95584.0,95583.0,0.00316085]
[1734924416856,0.18391632,95584.0,95583.0,0.00316085]
[1734924417107,0.30691632,95584.0,95583.0,0.00316085]
[1734924417307,0.0815,95557.0,95545.0,0.000171]
[1734924417505,0.0815,95557.0,95552.0,0.01635622]
[1734924417506,0.21060919,95556.0,95552.0,0.01635622]
[1734924417660,0.209316,95550.0,95545.0,0.0003317]
[1734924418286,0.418604,95556.0,95545.0,0.0003317]
[1734924418487,0.00130819,95555.0,95545.0,0.0003317]
[1734924418688,0.00130753,95565.0,95545.0,0.0003317]
[1734924418890,0.10261653,95564.0,95545.0,0.0003317]
[1734924419114,0.18947813,95560.0,95545.0,0.01704518]
[1734924419289,0.001,95550.0,95545.0,0.02204518]
[1734924419510,0.209317,95549.0,95545.0,0.0003317]
[1734924419697,0.418635,95549.0,95545.0,0.0003317]
[1734924419955,0.209317,95549.0,95545.0,0.0003317]
[1734924420315,0.1013084,95559.0,95545.0,0.0003317]
[1734924420492,0.209311,95552.0,95545.0,0.0003317]
[1734924420697,0.209299,95557.0,95545.0,0.0003317]
[1734924420909,0.209303,95555.0,95545.0,0.0003317]
[1734924421113,0.1013084,95559.0,95545.0,0.0003317]
[1734924421302,0.00130819,95558.0,95545.0,0.0003317]
[1734924421677,0.209294,95559.0,95545.0,0.0033317]
[1734924421895,0.209282,95565.0,95546.0,0.418645]
[1734924422126,0.209296,95559.0,95554.0,0.02100215]
[1734924422326,0.209299,95557.0,95554.0,0.02100215]
[1734924422544,0.209296,95559.0,95554.0,0.02100215]
[1734924422727,0.00130815,95558.0,95554.0,0.02100215]
[1734924423577,0.209299,95557.0,95537.0,0.15]
[1734924423783,0.209299,95557.0,95538.0,0.20934]
[1734924423991,0.0001607,95558.0,95548.0,0.0204844]
[1734924424192,0.0001607,95558.0,95550.0,0.15]
[1734924424407,0.209231,95588.0,95565.0,0.209281]
[1734924424646,0.20922,95593.0,95574.0,0.209259]
[1734924424854,0.209224,95591.0,95570.0,0.209269]
[1734924425241,0.209224,95591.0,95576.0,0.209256]
[1734924425371,0.209224,95591.0,95571.0,0.209268]
[1734924425787,0.209224,95591.0,95569.0,0.15]
[1734924425788,0.418467,95587.0,95569.0,0.15]
[1734924426030,0.209237,95585.0,95569.0,0.15]
[1734924426656,0.209237,95585.0,95570.0,0.20927]
[1734924426912,0.209237,95585.0,95569.0,0.15]
[1734924427637,0.00024635,95594.0,95567.0,0.02090771]
[1734924427638,0.10261616,95584.0,95567.0,0.02090771]
[1734924427841,0.209244,95582.0,95567.0,0.02090771]
[1734924428015,0.209248,95580.0,95567.0,0.02090771]
[1734924428217,0.00130789,95579.0,95564.0,0.15]
[1734924428425,0.00130789,95579.0,95557.0,0.01658994]
[1734924428426,0.10261635,95579.0,95557.0,0.01658994]
[1734924428601,0.20928,95566.0,95545.0,0.209323]
[1734924428803,0.209274,95569.0,95555.0,0.02096429]
[1734924429200,0.209274,95569.0,95567.0,0.003]
[1734924429481,0.209277,95567.0,95555.0,0.02096429]
[1734924429667,0.209281,95565.0,95555.0,0.02096429]
[1734924430134,0.209274,95569.0,95555.0,0.02096429]
[1734924430279,0.209277,95567.0,95555.0,0.02096429]
[1734924430598,0.00130804,95566.0,95555.0,0.02096429]
[1734924430861,0.007,95566.0,95555.0,0.02096429]
[1734924431069,0.007,95566.0,95556.0,0.209301]
[1734924431276,0.41981394,95578.0,95556.0,0.209301]
[1734924431476,0.209267,95572.0,95556.0,0.209301]
[1734924431622,0.209267,95572.0,95555.0,0.02296429]
[1734924431830,0.209267,95572.0,95556.0,0.209301]
[1734924432039,0.218281,95566.0,95555.0,0.02196429]
[1734924432284,0.00130797,95565.0,95555.0,0.001]
[1734924432460,0.00130797,95565.0,95550.0,0.02109806]
[1734924432667,0.00130797,95565.0,95545.0,0.0001607]
[1734924432668,0.0784,95558.0,95545.0,0.0001607]
[1734924432863,0.209318,95549.0,95545.0,0.0001607]
[1734924433092,0.209321,95547.0,95545.0,0.0001607]
[1734924433314,0.00130838,95546.0,95545.0,0.0001607]
[1734924433524,0.209318,95549.0,95545.0,0.0001607]
[1734924433703,0.418636,95549.0,95545.0,0.0001607]
[1734924433914,0.209321,95547.0,95545.0,0.0001607]
[1734924434119,0.00130831,95546.0,95545.0,0.0001607]
[1734924434610,0.10261671,95546.0,95545.0,0.0001607]
[1734924434863,0.1013084,95546.0,95545.0,0.0001607]
[1734924434984,0.10261678,95546.0,95545.0,0.0013317]
[1734924435396,0.10261678,95546.0,95545.0,0.0003317]
[1734924436237,0.10361678,95546.0,95545.0,0.0003317]
[1734924439852,0.10361687,95546.0,95545.0,0.0003317]
[1734924440062,0.001,95546.0,95545.0,0.0003317]
[1734924440461,0.001,95546.0,95545.0,0.01673175]
[1734924440818,0.001,95546.0,95545.0,0.0003317]
[1734924441241,0.209299,95557.0,95545.0,0.0003317]
[1734924441460,0.209294,95560.0,95545.0,0.0003317]
[1734924441667,0.001,95546.0,95545.0,0.0063317]
[1734924441869,0.209174,95615.0,95545.0,0.0003317]
[1734924441870,0.1244,95584.0,95545.0,0.0003317]
[1734924442068,0.209254,95578.0,95549.0,0.15]
[1734924442259,0.10261633,95577.0,95549.0,0.15]
[1734924442433,0.209286,95563.0,95549.0,0.15]
[1734924442762,0.209278,95567.0,95549.0,0.359315]
[1734924443399,0.209304,95555.0,95553.0,0.02118172]
[1734924443529,0.00130819,95554.0,95545.0,0.0003317]
[1734924443730,0.209294,95560.0,95547.0,0.02099726]
[1734924444371,0.209296,95558.0,95547.0,0.02099726]
[1734924444586,0.209296,95558.0,95549.0,0.001]
[1734924444757,0.209296,95558.0,95547.0,0.02099726]
[1734924445197,0.20931,95552.0,95547.0,0.02499726]
[1734924445397,0.077,95584.0,95547.0,0.02099726]
[1734924445607,0.209283,95564.0,95547.0,0.02099726]
[1734924445810,0.001,95558.0,95549.0,0.006]
[1734924446014,0.209288,95562.0,95547.0,0.02099726]
[1734924446227,0.209314,95550.0,95545.0,0.01676276]
[1734924446447,0.31193302,95549.0,95545.0,0.0003317]
[1734924447492,0.52125102,95549.0,95547.0,0.005]
[1734924447893,0.52125102,95549.0,95545.0,0.0003317]
[1734924448926,0.52125102,95549.0,95545.0,0.0013317]
[1734924449126,0.52125102,95549.0,95545.0,0.0003317]
[1734924450543,0.211317,95549.0,95545.0,0.0003317]
[1734924450749,0.209321,95547.0,95545.0,0.0003317]
[1734924451001,0.00130829,95546.0,95545.0,0.0003317]
[1734924451869,0.209321,95547.0,95545.0,0.0023317]
[1734924452109,0.209309,95553.0,95545.0,0.0023317]
[1734924452330,0.209295,95559.0,95545.0,0.0003317]
[1734924452331,0.209299,95557.0,95545.0,0.0003317]
[1734924452536,0.209303,95555.0,95545.0,0.0043317]
[1734924452749,0.209303,95555.0,95545.0,0.02534387]
[1734924453580,0.209289,95562.0,95546.0,0.209323]
[1734924453937,0.0769,95576.0,95545.0,0.23066887]
[1734924453938,0.209272,95570.0,95545.0,0.23066887]
[1734924454144,0.209257,95577.0,95557.0,0.209299]
[1734924454459,0.00130795,95576.0,95557.0,0.209299]
[1734924454643,0.209266,95572.0,95557.0,0.209299]
[1734924454862,0.00130795,95571.0,95557.0,0.209299]
[1734924455445,0.00130795,95571.0,95557.0,0.212299]
[1734924455746,0.00130795,95571.0,95557.0,0.209299]
[1734924455956,0.00130795,95577.0,95557.0,0.209299]
[1734924456153,0.209266,95573.0,95557.0,0.22436784]
[1734924456368,0.00130795,95572.0,95557.0,0.37436784]
[1734924456807,0.00130795,95577.0,95557.0,0.37436784]
[1734924457165,0.0010855,95558.0,95557.0,0.38136784]
[1734924457373,0.0010855,95558.0,95557.0,0.37436784]
[1734924457777,0.0030855,95558.0,95557.0,0.37436784]
[1734924458183,0.0030855,95558.0,95557.0,0.47567624]
[1734924458695,8.55e-05,95558.0,95557.0,0.47567624]
[1734924458896,0.0020855,95558.0,95557.0,0.47567624]
[1734924460185,8.55e-05,95558.0,95557.0,0.47567624]
[1734924460615,0.0090855,95558.0,95557.0,0.47667624]
[1734924460833,8.55e-05,95558.0,95557.0,0.47567624]
[1734924461252,0.0010855,95558.0,95557.0,0.47567624]
[1734924461451,8.55e-05,95558.0,95557.0,0.47567624]
[1734924461804,8.55e-05,95558.0,95557.0,0.01506884]
[1734924462016,0.0090855,95558.0,95557.0,0.01606884]
[1734924462220,8.55e-05,95558.0,95550.0,0.24092212]
[1734924462424,8.55e-05,95558.0,95552.0,0.15]
[1734924462828,8.55e-05,95558.0,95554.0,0.15]
[1734924463280,8.55e-05,95558.0,95555.0,0.209303]
[1734924463497,8.55e-05,95558.0,95556.0,0.15]
[1734924463737,0.0090855,95558.0,95557.0,0.001]
[1734924463941,8.55e-05,95558.0,95556.0,0.15]
[1734924464149,8.55e-05,95558.0,95557.0,0.15]
[1734924464349,0.0040855,95558.0,95557.0,0.15]
[1734924464542,8.55e-05,95558.0,95557.0,0.15]
[1734924464963,0.0050855,95558.0,95557.0,0.15]
[1734924465194,0.0050855,95558.0,95557.0,0.359299]
[1734924465429,8.55e-05,95558.0,95557.0,0.359299]
[1734924466073,8.55e-05,95558.0,95557.0,0.4606074]
[1734924466714,0.0040855,95558.0,95557.0,0.4606074]
[1734924467228,8.55e-05,95558.0,95557.0,0.4606074]
[1734924467681,0.0020855,95558.0,95557.0,0.4606074]
[1734924467867,8.55e-05,95558.0,95557.0,0.4606074]
[1734924468216,0.0010855,95558.0,95557.0,0.4606074]
[1734924469884,8.55e-05,95558.0,95557.0,0.4606074]
[1734924470151,8.55e-05,95558.0,95550.0,0.1064299]
[1734924470354,0.0090855,95558.0,95557.0,0.001]
[1734924471004,8.55e-05,95558.0,95555.0,0.209301]
[1734924471212,8.55e-05,95558.0,95551.0,0.15]
[1734924471441,0.0040855,95558.0,95550.0,0.01550778]
[1734924471641,8.55e-05,95558.0,95550.0,0.01550778]
[1734924471854,8.55e-05,95558.0,95548.0,0.209316]
[1734924472064,8.55e-05,95558.0,95550.0,0.359314]
[1734924472720,8.55e-05,95558.0,95556.0,0.000171]
[1734924473246,0.0090855,95558.0,95557.0,0.001]
[1734924473438,8.55e-05,95558.0,95556.0,0.000171]
[1734924473778,0.0010855,95558.0,95556.0,0.000171]
[1734924474187,0.0010855,95558.0,95556.0,0.1014794]
[1734924474188,8.55e-05,95558.0,95556.0,0.1014794]
[1734924474391,0.0090855,95558.0,95557.0,0.2523084]
[1734924474996,0.0090855,95558.0,95557.0,0.4616074]
[1734924475202,8.55e-05,95558.0,95557.0,0.4606074]
[1734924476069,8.55e-05,95583.0,95559.0,0.437494]
[1734924476235,8.55e-05,95583.0,95582.0,0.15]
[1734924476409,0.0766856,95612.0,95583.0,0.1]
[1734924476614,0.0766856,95612.0,95593.0,0.35922]
[1734924476816,0.0766856,95612.0,95593.0,0.4605284]
[1734924477322,0.0766856,95612.0,95593.0,0.41775524]
[1734924477568,0.00024635,95594.0,95593.0,0.41775524]
[1734924478306,0.00124635,95594.0,95593.0,0.42375524]
[1734924478673,0.00124635,95594.0,95593.0,0.32244684]
[1734924479098,0.00124635,95594.0,95593.0,0.34360976]
[1734924480117,0.00124635,95594.0,95593.0,0.35787381]
[1734924481032,0.00124635,95594.0,95593.0,0.19142697]
[1734924481239,0.00124635,95594.0,95593.0,0.04142697]
[1734924481655,0.00124635,95594.0,95593.0,0.40064697]
[1734924483649,0.00124635,95594.0,95593.0,0.04142697]
[1734924483860,0.00124635,95594.0,95593.0,0.40064697]
[1734924484576,0.00124635,95594.0,95593.0,0.19142697]
[1734924488791,0.23065475,95594.0,95593.0,0.006]
[1734924488991,0.23065475,95594.0,95578.0,0.09092212]
[1734924488992,0.35365475,95594.0,95578.0,0.09092212]
[1734924489217,0.31205,95579.0,95578.0,0.09092212]
[1734924489418,0.4133584,95579.0,95578.0,0.09092212]
[1734924489621,0.41857637,95579.0,95576.0,0.09092212]
[1734924489857,0.209255,95577.0,95576.0,0.09092212]
[1734924490080,0.3105634,95577.0,95576.0,0.09092212]
[1734924490256,0.31628879,95577.0,95576.0,0.09092212]
[1734924490703,0.31628879,95577.0,95564.0,0.01465005]
[1734924490978,0.209271,95570.0,95551.0,0.15]
[1734924491201,0.41855,95568.0,95551.0,0.15]
[1734924491382,0.209279,95566.0,95551.0,0.15]
[1734924491617,0.00130808,95565.0,95551.0,0.15]
[1734924491825,0.00703343,95565.0,95551.0,0.15]
[1734924492025,0.209283,95564.0,95548.0,0.15]
[1734924492158,0.209283,95564.0,95556.0,0.01475525]
[1734924492159,0.21059415,95563.0,95556.0,0.01475525]
[1734924492365,0.21059415,95563.0,95556.0,0.000171]
[1734924492574,0.20929,95561.0,95556.0,0.000171]
[1734924492974,0.209294,95559.0,95556.0,0.000171]
[1734924493179,0.209299,95557.0,95556.0,0.000171]
[1734924493388,0.3106074,95557.0,95556.0,0.000171]
[1734924493591,0.31633273,95557.0,95556.0,0.000171]
[1734924493798,0.31633273,95557.0,95556.0,0.001171]
[1734924494012,0.00572533,95557.0,95556.0,0.001171]
[1734924494217,0.00572533,95557.0,95556.0,0.000171]
[1734924494418,0.00672533,95557.0,95556.0,0.001171]
[1734924494765,0.00572533,95557.0,95556.0,0.000171]
[1734924495172,0.00803353,95557.0,95556.0,0.000171]
[1734924495354,0.00703353,95557.0,95556.0,0.000171]
[1734924495764,0.00803353,95557.0,95556.0,0.000171]
[1734924497149,0.0023082,95557.0,95556.0,0.000171]
[1734924497401,0.1036166,95557.0,95556.0,0.000171]
[1734924497754,0.1023084,95557.0,95556.0,0.000171]
[1734924497957,0.12661669,95557.0,95556.0,0.000171]
[1734924498891,0.12661669,95557.0,95512.0,0.209397]
[1734924498892,0.209323,95546.0,95519.0,0.02062946]
[1734924499098,0.3858314,95546.0,95519.0,0.02062946]
[1734924499295,0.4088314,95546.0,95512.0,0.209397]
[1734924499545,0.4088314,95546.0,95518.0,0.02049521]
[1734924499937,0.4088314,95546.0,95526.0,0.01425017]
[1734924501229,0.4138314,95546.0,95526.0,0.01425017]
[1734924501666,0.4188314,95546.0,95526.0,0.01425017]
[1734924502074,0.4138314,95546.0,95526.0,0.01425017]
[1734924502273,0.4188314,95546.0,95526.0,0.01425017]
[1734924502520,0.3958314,95546.0,95526.0,0.01425017]
[1734924502929,0.3958314,95546.0,95524.0,0.209369]
[1734924502930,0.01,95546.0,95532.0,0.209353]
[1734924503133,0.01,95546.0,95533.0,0.02114702]
[1734924503323,0.01,95546.0,95533.0,0.17114702]
[1734924503533,0.0013082,95558.0,95533.0,0.17114702]
[1734924503703,0.00130821,95557.0,95546.0,0.209323]
[1734924503922,0.005,95546.0,95545.0,0.000171]
[1734924504506,0.006,95546.0,95545.0,0.001171]
[1734924504983,0.00130821,95559.0,95545.0,0.000171]
[1734924505207,0.001,95546.0,95545.0,0.001171]
[1734924506117,0.001,95546.0,95545.0,0.01564161]
[1734924506327,0.001,95546.0,95545.0,0.37496661]
[1734924506833,5.359e-05,95561.0,95546.0,0.15]
[1734924507059,5.359e-05,95561.0,95553.0,0.209307]
[1734924507299,5.359e-05,95561.0,95560.0,0.209292]
[1734924508259,5.359e-05,95561.0,95557.0,0.15]
[1734924508474,0.00805359,95561.0,95558.0,0.209296]
[1734924508706,5.359e-05,95561.0,95560.0,0.359292]
[1734924509339,5.359e-05,95561.0,95560.0,0.15]
[1734924509549,5.359e-05,95561.0,95560.0,0.17138311]
[1734924509749,5.359e-05,95561.0,95560.0,0.02138311]
[1734924510504,0.00405359,95561.0,95560.0,0.02138311]
[1734924511296,5.359e-05,95561.0,95560.0,0.02138311]
[1734924511610,0.00105359,95561.0,95560.0,0.02838311]
[1734924511817,0.00105359,95561.0,95560.0,0.02138311]
[1734924512317,0.00505359,95561.0,95560.0,0.02138311]
[1734924516439,5.359e-05,95561.0,95560.0,0.02138311]
[1734924517154,0.00305359,95561.0,95560.0,0.02138311]
[1734924518207,0.0803,95603.0,95571.0,0.12628307]
[1734924518413,5.36e-05,95589.0,95585.0,0.209236]
[1734924518826,5.36e-05,95589.0,95587.0,0.209233]
[1734924519037,5.36e-05,95589.0,95588.0,0.15]
[1734924519680,0.0010536,95589.0,95588.0,0.15]
[1734924519850,5.36e-05,95589.0,95588.0,0.15]
[1734924520387,0.0010536,95589.0,95588.0,0.158]
[1734924521437,0.0010536,95589.0,95588.0,0.17217215]
[1734924521645,5.36e-05,95589.0,95588.0,0.16417215]
[1734924521845,0.0010536,95589.0,95588.0,0.16417215]
[1734924522267,5.36e-05,95589.0,95588.0,0.16417215]
[1734924522465,0.0010536,95589.0,95588.0,0.17317215]
[1734924522824,5.36e-05,95589.0,95588.0,0.16417215]
[1734924523206,0.0090536,95589.0,95588.0,0.16517215]
[1734924523403,5.36e-05,95589.0,95588.0,0.16417215]
[1734924523606,0.023,95587.0,95551.0,0.18184424]
[1734924523838,0.023,95578.0,95551.0,0.18184424]
[1734924524032,0.02430787,95578.0,95551.0,0.18184424]
[1734924524283,0.023,95576.0,95551.0,0.18184424]
[1734924524802,0.00611139,95575.0,95560.0,0.20929]
[1734924524911,0.00611139,95575.0,95568.0,0.02128385]
[1734924525321,0.007,95576.0,95568.0,0.02128385]
[1734924525529,0.007,95576.0,95569.0,0.209272]
[1734924525730,0.023,95584.0,95571.0,0.209268]
[1734924525931,0.00603977,95583.0,95569.0,0.209272]
[1734924526183,0.02430777,95588.0,95570.0,0.15]
[1734924526384,0.0060472,95582.0,95571.0,0.209268]
[1734924526555,0.023,95581.0,95570.0,0.15]
[1734924526778,0.001,95576.0,95570.0,0.15]
[1734924527192,0.00604715,95575.0,95569.0,0.006]
[1734924527969,0.00604715,95575.0,95568.0,0.02128385]
[1734924528169,0.023,95573.0,95553.0,0.15]
[1734924528443,0.023,95573.0,95562.0,0.02042879]
[1734924528444,0.209282,95565.0,95562.0,0.02042879]
[1734924528570,0.209269,95571.0,95562.0,0.02042879]
[1734924528777,0.00604315,95564.0,95562.0,0.02042879]
[1734924529012,0.023,95570.0,95569.0,0.005]
[1734924529264,0.023,95570.0,95562.0,0.02042879]
[1734924529669,0.008,95565.0,95562.0,0.02042879]
[1734924529876,0.20925,95580.0,95562.0,0.02042879]
[1734924529877,0.023,95572.0,95562.0,0.02042879]
[1734924530081,0.023,95577.0,95562.0,0.17042879]
[1734924530288,0.00130794,95576.0,95562.0,0.17042879]
[1734924530492,0.00130794,95578.0,95562.0,0.17042879]
[1734924530783,0.023,95579.0,95562.0,0.17042879]
[1734924531115,0.00130794,95578.0,95562.0,0.17042879]
[1734924531265,0.023,95577.0,95562.0,0.02042879]
[1734924531464,0.02430794,95577.0,95569.0,0.003]
[1734924531680,0.02430794,95577.0,95562.0,0.02042879]
[1734924531884,0.00612897,95576.0,95562.0,0.02042879]
[1734924532110,0.00612897,95576.0,95563.0,0.15]
[1734924532272,0.00612897,95576.0,95564.0,0.209283]
[1734924532483,0.00612897,95576.0,95565.0,0.209281]
[1734924532686,0.00612897,95576.0,95569.0,0.004]
[1734924532932,8.56e-05,95576.0,95569.0,0.004]
[1734924533141,0.0230856,95576.0,95563.0,0.15]
[1734924533341,0.00604337,95575.0,95563.0,0.15]
[1734924533655,0.00604337,95575.0,95562.0,0.22971579]